Cogmind - Beta 13 @@@ ROGUE MODE // 2024.06.30 @ 15:11:05 Player: keygenpie Result: Destroyed by D-53 Grenadier with Mini Grenade Launcher Performance ------------- Evolutions (0) 0 Regions Visited (2) 400 Robots Destroyed (12) 60 Value Destroyed (197) 197 Prototype IDs (0) 0 Alien Tech Used (0) 0 Bonus (0) 0 TOTAL SCORE: 657 Bonus ------- None Cogmind --------- Core Integrity 0/250 Matter 300/300 Energy 123/125 System Corruption 1% Temperature Cool (0) Movement Rolling (90) Location -10/Mines Parts ------- > --- POWER (1) -------- Light Ion Engine > --- PROPULSION (2) --- Wheel Compact Wheel > --- UTILITY (2) ------ Improved Heat Sink Seismic Detector > --- WEAPON (2) ------- Medium Laser Light Assault Rifle > --- INVENTORY (5) ---- Ion Engine Grenade Launcher Peak State ------------ > --- POWER ------------ Light Ion Engine > --- PROPULSION ------- Compact Wheel Compact Wheel > --- UTILITY ---------- Improved Heat Sink Seismic Detector > --- WEAPON ----------- Light Assault Rifle Light Assault Rifle > --- INVENTORY -------- Ion Engine Flight Unit Flight Unit Medium Laser Grenade Launcher [Rating: 9] Favorites ----------- Power Light Ion Engine Engine Light Ion Engine Propulsion Compact Wheel Leg Aluminum Leg Wheel Compact Wheel Flight Unit Flight Unit Utility Heat Sink Device Heat Sink Storage Small Storage Unit Weapon Light Assault Rifle Energy Gun Medium Laser Ballistic Gun Light Assault Rifle Build | -11 -10 -10 ------- Run | Yrd Mat Min Slots Evolved . | . . . Power . | . . . Propulsion . | . . . Utility . | . . . Weapon . | . . . Parts Attached 32 | 6 13 13 Power 5 | 1 1 3 Engine 5 | 1 1 3 Core . | . . . Reactor . | . . . Propulsion 13 | 2 6 5 Treads . | . . . Leg 2 | . 2 . Wheel 7 | 2 2 3 Hover . | . . . Flight 4 | . 2 2 Utility 7 | 1 4 2 Device 4 | . 2 2 Storage 3 | 1 2 . Processor . | . . . Hackware . | . . . Protection . | . . . Artifact . | . . . Weapon 7 | 2 2 3 Energy Gun 3 | 1 1 1 Energy Cannon . | . . . Ballistic Gun 4 | 1 1 2 Ballistic Cannon . | . . . Launcher . | . . . Special Weapon . | . . . Impact Weapon . | . . . Slashing Weapon . | . . . Piercing Weapon . | . . . Special Melee Weapon . | . . . Unidentified Prototypes . | . . . Parts Lost 2 | . . 2 Power . | . . . Propulsion 1 | . . 1 Utility . | . . . Weapon 1 | . . 1 Highest Loss Streak 2 | . . 2 To Critical Strikes . | . . . Average Slot Usage (%) 92 | . 92 91 Engine 13 | . 14 12 Leg 8 | . 14 . Wheel 15 | . 11 20 Flight 4 | . 1 7 Device 19 | . 16 22 Storage 3 | . 5 . Energy Gun 8 | . 12 4 Ballistic Gun 18 | . 14 24 Naked Turns . | . . . Heaviest Build 19 | 12 19 10 Greatest Support 32 | 20 32 32 Greatest Overweight (x) 1 | 1 1 1 Average Overweight (x) . | . . . Largest Inventory Capacity 10 | 8 10 5 Average Capacity 5 | 7 6 5 Most Carried 5 | 2 5 5 Average Carried 3 | . 2 4 Final Capacity 8 | 8 5 5 Final Carried 4 | . 4 2 Class Distribution -------------------- 67% | Scavenger-Mutant 32% | Mutant Dominant Class ---------------- Scavenger-Mutant | -10/Materials Scavenger-Mutant | -10/Mines Resources | -11 -10 -10 ----------- Run | Yrd Mat Min Matter Collected 606 | 278 95 233 Remotely . | . . . Salvage Created 446 | 92 77 277 Parts 24 | . 9 15 Haulers Intercepted . | . . . Recyclers Shooed 1 | . . 1 Parts Field Recycled . | . . . Retrieved Matter . | . . . Parts Self-Destructed . | . . . Prevented . | . . . Kills | -11 -10 -10 ------- Run | Yrd Mat Min Combat Hostiles Destroyed 13 | . 4 9 Guns 13 | . 4 9 Classes Destroyed 4 | 1 2 1 Recycler 2 | 1 . 1 Swarmer 7 | . 3 4 Grunt 3 | . 1 2 Assembled 3 | . . 3 Best Kill Streak 5 | 1 4 5 Combat Bots Only 4 | . 4 4 Max Kills in Single Turn 1 | 1 1 1 Gunslinging . | . . . Exploded . | . . . Melee . | . . . Uniques/NPCs Destroyed . | . . . Combat | -11 -10 -10 -------- Run | Yrd Mat Min Hostile Shots Fired 90 | . 27 63 Missed 25 | . 4 21 Damage Taken 746 | . 227 519 Core 251 | . 55 196 Absorbed by Shields . | . . . Core Remaining (%) 100 | 100 . . Volleys Fired 45 | 6 12 27 Largest 2 | 2 2 2 Hottest 70 | 70 70 70 Shots Fired 88 | 12 24 52 Gun 88 | 12 24 52 Cannon . | . . . Launcher . | . . . Special . | . . . Kinetic 64 | 6 12 46 Thermal 24 | 6 12 6 Explosive . | . . . Electromagnetic . | . . . Robot Hit Streak 12 | 3 7 12 Robot Miss Streak 3 | 1 2 3 Penetration Max . | . . . Secondary Targets 5 | . 2 3 Max Gunslinging Chain 1 | . 1 1 Shots Hit Robots 59 | 8 16 35 Core Hits 31 | 2 6 23 Critical Kills . | . . . Critical Parts Destroyed . | . . . Critical Strikes 2 | 1 . 1 Burn 2 | 1 . 1 Melee Attacks . | . . . Impact . | . . . Slashing . | . . . Piercing . | . . . Sneak Attacks . | . . . Combat Hostiles . | . . . Follow-up Attacks . | . . . Damage Inflicted 625 | 102 216 307 Guns 625 | 102 216 307 Cannons . | . . . Explosions . | . . . Melee . | . . . Ramming . | . . . Kinetic 401 | 53 102 246 Thermal 224 | 49 114 61 Explosive . | . . . Electromagnetic . | . . . Impact . | . . . Slashing . | . . . Piercing . | . . . Highest Corruption 1 | . 1 1 Average Corruption 1 | . 1 1 Corruption Purged . | . . . Corruption Blocked . | . . . Effects 2 | . 1 1 Heat Flow Errors 1 | . 1 . Data Loss (minor) 1 | . . 1 Overload Shots . | . . . Overflow Damage . | . . . Projectiles . | . . . Explosions . | . . . Melee . | . . . Knockbacks . | . . . Impact . | . . . Kinetic . | . . . Secondary . | . . . Self-Inflicted Damage . | . . . Shots . | . . . Rammed . | . . . Targets Rammed . | . . . Kicked . | . . . Crushed . | . . . Highest Temperature 162 | 54 162 23 Average Temperature 52 | 28 77 6 Received Heat Transfer 209 | . 72 137 Siege Activations . | . . . Robots Corrupted . | . . . Combat Hostiles . | . . . Parts Fried . | . . . Impact Corruptions . | . . . Robots Melted . | . . . Combat Hostiles . | . . . Parts Melted . | . . . Heat Transferred 814 | 222 333 259 Parts Sabotaged . | . . . Parts Stolen . | . . . Parts Stripped . | . . . Power Chain Reactions . | . . . Alert | -11 -10 -10 ------- Run | Yrd Mat Min Peak Influence 213 | 5 113 213 Initial 43 | . 3 43 Average 107 | . 90 159 Maximum Alert Level 1 | . . 1 Low Security (%) 87 | 100 100 68 Level 1 12 | . . 31 Level 2 . | . . . Level 3 . | . . . Level 4 . | . . . Level 5 . | . . . High Security . | . . . Max Security . | . . . Squads Dispatched 1 | . 1 . Investigation . | . . . Extermination . | . . . Reinforcement 1 | . 1 . Assault . | . . . Garrison . | . . . Intercept . | . . . Searches Triggered . | . . . Construction Impeded . | . . . Haulers Reinforced . | . . . Active Scanning Responses . | . . . Cargo Convoy Interrupts . | . . . Stealth | -11 -10 -10 --------- Run | Yrd Mat Min Distress Signals . | . . . Communications Jammed . | . . . Distress Signals . | . . . Times Spotted 25 | . 5 20 Peak Tracking Total 11 | . 4 11 Tactical Retreats 2 | . . 2 Traps | -11 -10 -10 ------- Run | Yrd Mat Min Traps Triggered 1 | . 1 . Indirectly . | . . . Trap Hack Attempts . | . . . Triggered . | . . . Disarmed . | . . . Reprogrammed . | . . . Reused . | . . . Traps Extracted . | . . . Installed . | . . . Triggered . | . . . Machines | -11 -10 -10 ---------- Run | Yrd Mat Min Machines Disabled . | . . . Max in Single Turn . | . . . Machines Repaired . | . . . Machines Dismantled . | . . . Machines Sabotaged . | . . . Overloaded Fab Kills . | . . . Hacking | -11 -10 -10 --------- Run | Yrd Mat Min Machines Accessed 1 | . 1 . Terminals 1 | . 1 . Fabricators . | . . . Repair Stations . | . . . Recycling Units . | . . . Scanalyzers . | . . . Garrison Access . | . . . Total Hacks 1 | . 1 . Successful 1 | . 1 . Failed . | . . . Catastrophic . | . . . Database Lockouts . | . . . Manual . | . . . Terminals 1 | . 1 . Fabricators . | . . . Repair Stations . | . . . Recycling Units . | . . . Scanalyzers . | . . . Garrison Access . | . . . Terminal Hacks 1 | . 1 . Zone Layout 1 | . 1 . Fabricator Hacks . | . . . Repair Station Hacks . | . . . Recycling Unit Hacks . | . . . Scanalyzer . | . . . Garrison Access Hacks . | . . . Unauthorized Hacks . | . . . Terminals . | . . . Fabricators . | . . . Repair Stations . | . . . Recycling Units . | . . . Scanalyzers . | . . . Garrison Access . | . . . Data Cores Recovered . | . . . Used . | . . . Hacking Detections 1 | . 1 . Full Trace Events . | . . . Feedback Events . | . . . Feedback Blocked . | . . . Robot Schematics Acquired . | . . . Robots Built . | . . . Authchips . | . . . Time . | . . . Total Robot Build Rating . | . . . Part Schematics Acquired . | . . . Parts Built . | . . . Authchips . | . . . Time . | . . . Total Part Build Rating . | . . . Parts Repaired . | . . . Time . | . . . Parts Recycled . | . . . Recycled Matter . | . . . Retrieved Matter . | . . . Retrieved Components . | . . . Parts Scanalyzed . | . . . Part Schematics Acquired . | . . . Parts Damaged . | . . . Bothacking | -11 -10 -10 ------------ Run | Yrd Mat Min Used RIF Installer . | . . . Robots Hacked . | . . . Non-combat . | . . . Combat . | . . . Robot Hacks Applied . | . . . Relay Couplers Released . | . . . Fabnet Peak Effective % . | . . . Robots Rewired . | . . . Allies Hacked . | . . . Hacks Repelled . | . . . Allies | -11 -10 -10 -------- Run | Yrd Mat Min Total Allies . | . . . Largest Group . | . . . Highest-Rated Group . | . . . Highest-Rated Ally . | . . . Total Orders . | . . . Ally Attacks . | . . . Total Damage . | . . . Kills . | . . . Allies Corrupted . | . . . Allies Melted . | . . . Intel | -11 -10 -10 ------- Run | Yrd Mat Min Robot Analysis Total . | . . . Derelict Logs Recovered . | . . . Drone Launches . | . . . Drone Recoveries . | . . . Exploration | -11 -10 -10 ------------- Run | Yrd Mat Min Turns Passed 532 | 63 260 209 Spaces Moved 372 | 41 192 139 Core 6 | 6 . . Treads . | . . . Legs 100 | . 100 . Wheels 194 | 35 76 83 Hover . | . . . Flight 72 | . 16 56 Fastest Speed 37 | 50 37 37 Average Speed 88 | 80 100 75 Slowest Speed 120 | 100 120 117 Overloaded Moves . | . . . Propulsion Burnouts . | . . . Robots Hopped 1 | . . 1 Cave-ins Triggered . | . . . Exploration Rate (%) 20 | 3 23 35 Regions Visited 2 Branch Regions 1 Pre-discovered Areas . | . . . Known Exits Taken . | . . . Unknown Exits Taken 2 | 1 1 . Scrap Searched . | . . . Spaces Dug . | . . . Terrain Destroyed . | . . . Melee . | . . . Projectile . | . . . AOE . | . . . Terrain Rammed . | . . . Walls Destroyed . | . . . Machines Disabled . | . . . Actions | -11 -10 -10 --------- Run | Yrd Mat Min Total 496 | 58 239 199 Wait 4 | . . 4 Move 368 | 40 191 137 Hop 1 | . . 1 Pick Up 27 | 6 13 8 Fast Attach . | . . . Attach 20 | 6 10 4 Detach 3 | . 2 1 Swap 12 | . 3 9 Drop 16 | . 8 8 Fire 45 | 6 12 27 Melee . | . . . Ram . | . . . Kick . | . . . Crush . | . . . Escape Stasis . | . . . Rewire . | . . . Trap . | . . . Miscellaneous . | . . . Route ------- -11/Scrapyard -10/Materials -10/Mines History --------- Turn | Location | Event 18 | -11/Scrapyard | Discovered new exit (range 16) 64 | -11/Scrapyard | Entered Materials 264 | -10/Materials | Discovered new exit (range 15) 324 | -10/Materials | Entered Mines 330 | -10/Mines | Met a Derelict bent on vengeance 440 | -10/Mines | Assembled infested the area 459 | -10/Mines | Core integrity fell below 50% 467 | -10/Mines | Core integrity fell below 20% 533 | -10/Mines | Destroyed by D-53 Grenadier with Mini Grenade Launcher Last Messages --------------- 00475_ as-45932 destroyed. 00478_ Acquired 37 matter. 00481_ Acquired Lgt. Ion Engine. 00483_ Dropped Flight Unit. 00490_ Lgt. Assault Rifle destroyed. 00493_ as-51118 destroyed. 00494_ Acquired 12 matter. 00499_ R-06 Scavenger suffers critical hit (Burn). 00501_ R-06 Scavenger destroyed. 00505_ Acquired 52 matter. 00510_ Acquired 10 matter. 00515_ Acquired Lgt. Assault Rifle. 00518_ Dropped Lgt. Assault Rifle. 00519_ Acquired 10 matter. 00521_ Acquired Ion Engine. 00528_ Acquired Wheel. 00531_ Dropped Com. Wheel. 00531_ Acquired 10 matter. 00533_ D-53 Grenadier misfires. Map ----- +----------------------------------------------------+ | | | | | | | | | | | | | | | | | | | ???????????????????????????????????????????????? | | ???????????????????????????????????????????????? | | ???????????????????????????????????????????????? | | ???????????????????????????????????????????????? | | ???????????????????????????????????????????????? | | ???????????????????????????????????????????????? | | ????????????????????????##?????????????????????? | | ????????????????????#### ?????????????????????? | | ??????????????????### ?????????????????????? | | ??????????## ??#### ?????????????????????? | | ?????????? ## ??????????????????????? | | ??????????? d ??????????????????????? | | ????????????? =% ! % ??????????????????????? | | ??????????????? ??????????????????????? | | ?????????????????# ####???????????????????? | | ??????????????????# ## ######??????????#???? | | ???????????????????## @%= =#????????? ##??? | | ???????????????????# * % [#???????? ##?? | | ??????????????????# ######=#???????? ### | | ??????????????????# ###????#=#??????? | | ??????????????????## #???????#=#??????# | | ???????????????????###????????#%#?????# % | | ??????????????????????????????#=#????# = | | ??????????????????????????????#%#???# | | ??????????????????????????????#=#?## ? | | ??????????????????????????????# ### #????? | | ?????????????????????????????## ## #?????? | | ????????????????????????????## ##?????? | | ???????????????????????????## ##??????? | | ???????????????????????????# ##???????? | | ????????????###???????????## ## ##????????? | | ???????????## ####????#### ##?##?????????? | | ??????????## #??## ##?????????????? | | ?????????## ### ##??????????????? | | ?????????# #####???????????????? | | ?????????# ##???????????????????? | | ??????????# ##????????????????????? | | ??????????#### ## ##?????????????????????? | | ?????????????####??## ##?????????????????????? | | ????????????????????# ##????????????????????? | | ????????????????????# ##???????????????????? | +----------------------------------------------------+ Best States ------------- Heat Dissipation 39 Energy Generation 10 Energy Capacity 250 Matter Stores 300 Matter Capacity 300 Sight Range 16 Terrain Scan Density 10 Evasion (%) 62 Item Schematics ----------------- None Robot Schematics ------------------ None Fabricated ------------ Nothing Alien Tech Used ----------------- None Achievements -------------- None Challenges ------------ None Game ------ Seed FusionPortableMatter Manual? 0 Play Time 00:10:35 Cumulative 2.5 hours Start 2024.06.30 @ 14:57:11 End 2024.06.30 @ 15:11:05 Sessions 1 Manual Loads 0 Difficulty Rogue Special Mode None Game No. 6 Rogue 6 Adventurer 0 Explorer 0 Win Type - Total 0 Types 0/0/0/0/0/0/0/0/0 Lore% 3 Gallery% 7 Achievement% 8 Wizard Run 0 Options --------- Layout 1 ASCII 0 Keyboard 0 Movement Arrows Keybinds 0 Fullscreen 1 Font 24/Tamsyn Map View 50x35 Zoom Use 0% Tactical HUD 1 Map Filters NONE Filters NONE Steam 1 RUN: 5b342393-5157-473c-a3c7-076e9ad48fb4